[Event "Titled Tuesday Blitz January 10 Late 2023"]
[White "Rose, Felix"]
[Black "Sokolovsky, Yahli"]
[WhiteFideId "5105722"]
[BlackFideId "2820242"]
[WhiteElo "2091"]
[BlackElo "2461"]
[Result "0-1"]
[Round "02"]
[TimeControl "180+2"]
[Date "2023.01.10"]
[WhiteClock "0:00:11"]
[BlackClock "0:00:37"]

1. e4 {[%clk 0:00:00]}  g6 {[%clk 0:00:00]} 2. d4 {[%clk 0:03:00]}  Bg7 {[%clk 0:02:56]} 3. Nf3 {[%clk 0:03:00]}  d6 {[%clk 0:02:57]} 4. Nc3 {[%clk 0:03:00]}  a6 {[%clk 0:02:57]} 5. a4 {[%clk 0:03:00]}  b6 {[%clk 0:02:58]} 6. Be3 {[%clk 0:03:00]}  Bb7 {[%clk 0:02:58]} 7. Be2 {[%clk 0:02:59]}  Nf6 {[%clk 0:02:58]} 8. e5 {[%clk 0:02:46]}  Nfd7 {[%clk 0:02:58]} 9. Bf4 {[%clk 0:02:46]}  Nc6 {[%clk 0:02:45]} 10. e6 {[%clk 0:02:37]}  f6 {[%clk 0:02:43]} 11. exd7+ {[%clk 0:02:29]}  Qxd7 {[%clk 0:02:43]} 12. Qd2 {[%clk 0:02:28]}  g5 {[%clk 0:02:33]} 13. Be3 {[%clk 0:02:22]}  h5 {[%clk 0:02:29]} 14. h4 {[%clk 0:02:14]}  g4 {[%clk 0:02:26]} 15. Nh2 {[%clk 0:02:11]}  e5 {[%clk 0:02:27]} 16. dxe5 {[%clk 0:02:06]}  fxe5 {[%clk 0:02:27]} 17. Nf1 {[%clk 0:01:58]}  Nd4 {[%clk 0:02:17]} 18. Rg1 {[%clk 0:01:53]}  Bf6 {[%clk 0:02:16]} 19. Bd3 {[%clk 0:01:47]}  Bxh4 {[%clk 0:01:50]} 20. Bg6+ {[%clk 0:01:30]}  Kf8 {[%clk 0:01:46]} 21. Bh6+ {[%clk 0:01:29]}  Kg8 {[%clk 0:01:40]} 22. Bg5 {[%clk 0:01:25]}  Bxg5 {[%clk 0:01:38]} 23. Qxg5 {[%clk 0:01:08]}  Qg7 {[%clk 0:01:22]} 24. O-O-O {[%clk 0:01:08]}  Rh6 {[%clk 0:01:22]} 25. Ng3 {[%clk 0:00:58]}  Qxg6 {[%clk 0:01:18]} 26. Qxg6+ {[%clk 0:00:38]}  Rxg6 {[%clk 0:01:08]} 27. Nxh5 {[%clk 0:00:31]}  Rf8 {[%clk 0:01:09]} 28. Rd2 {[%clk 0:00:31]}  Rh6 {[%clk 0:01:09]} 29. Ng3 {[%clk 0:00:31]}  Rh2 {[%clk 0:01:05]} 30. Nce4 {[%clk 0:00:29]}  Rf4 {[%clk 0:01:06]} 31. f3 {[%clk 0:00:27]}  gxf3 {[%clk 0:01:06]} 32. gxf3 {[%clk 0:00:25]}  Rxd2 {[%clk 0:00:59]} 33. Nxd2 {[%clk 0:00:25]}  Kf7 {[%clk 0:01:00]} 34. Kd1 {[%clk 0:00:26]}  Nxf3 {[%clk 0:00:56]} 35. Nxf3 {[%clk 0:00:19]}  Bxf3+ {[%clk 0:00:51]} 36. Kd2 {[%clk 0:00:14]}  Rxa4 {[%clk 0:00:52]} 37. Nf1 {[%clk 0:00:15]}  Rg4 {[%clk 0:00:39]} 38. Rxg4 {[%clk 0:00:13]}  Bxg4 {[%clk 0:00:37]} 39. Ne3 {[%clk 0:00:11]}  Be6 {[%clk 0:00:37]} 40. b3 {[%clk 0:00:11]}  a5 {[%clk 0:00:37]} 41. c3 {[%clk 0:00:11]}  Bxb3 {[%clk 0:00:37]} 0-1


[Site "https://www.chess.com"]

[Event "Titled Tuesday Blitz January 10 Late 2023"]
[White "Jaferian, Koosha"]
[Black "Silva, Caio Henrique Angelico"]
[WhiteFideId "12507440"]
[BlackFideId "22777210"]
[WhiteElo "2233"]
[BlackElo "2129"]
[Result "1-0"]
[Round "02"]
[TimeControl "180+2"]
[Date "2023.01.10"]
[WhiteClock "0:02:17"]
[BlackClock "0:01:04"]

1. Nf3 {[%clk 0:00:00]}  Nf6 {[%clk 0:00:00]} 2. b3 {[%clk 0:03:00]}  g6 {[%clk 0:02:56]} 3. Bb2 {[%clk 0:02:58]}  Bg7 {[%clk 0:02:52]} 4. g3 {[%clk 0:02:58]}  O-O {[%clk 0:02:52]} 5. Bg2 {[%clk 0:02:59]}  d5 {[%clk 0:02:53]} 6. c4 {[%clk 0:02:59]}  c5 {[%clk 0:02:53]} 7. cxd5 {[%clk 0:02:59]}  Nxd5 {[%clk 0:02:48]} 8. Bxg7 {[%clk 0:02:59]}  Kxg7 {[%clk 0:02:48]} 9. Qc1 {[%clk 0:03:00]}  Qd6 {[%clk 0:02:49]} 10. Nc3 {[%clk 0:03:01]}  Nxc3 {[%clk 0:02:46]} 11. Qxc3+ {[%clk 0:02:55]}  f6 {[%clk 0:02:46]} 12. d4 {[%clk 0:02:56]}  cxd4 {[%clk 0:02:46]} 13. Nxd4 {[%clk 0:02:51]}  a6 {[%clk 0:02:43]} 14. O-O {[%clk 0:02:52]}  e5 {[%clk 0:02:40]} 15. Nc2 {[%clk 0:02:46]}  Rf7 {[%clk 0:02:40]} 16. Rfd1 {[%clk 0:02:36]}  Qc7 {[%clk 0:02:05]} 17. Qb2 {[%clk 0:02:35]}  Nc6 {[%clk 0:02:04]} 18. Rac1 {[%clk 0:02:26]}  Qb6 {[%clk 0:02:00]} 19. Ne3 {[%clk 0:02:24]}  Be6 {[%clk 0:01:59]} 20. Rd6 {[%clk 0:02:22]}  Qc7 {[%clk 0:01:30]} 21. Rxe6 {[%clk 0:02:20]}  Qd7 {[%clk 0:01:26]} 22. Rexc6 {[%clk 0:02:16]}  bxc6 {[%clk 0:01:09]} 23. Bxc6 {[%clk 0:02:16]}  Qd8 {[%clk 0:01:08]} 24. Bxa8 {[%clk 0:02:17]}  Qxa8 {[%clk 0:01:04]} 1-0


[Site "https://www.chess.com"]

[Event "Titled Tuesday Blitz January 10 Late 2023"]
[White "rikchessmx"]
[Black "Korchmar, Vasiliy"]
[BlackFideId "24131750"]
[WhiteElo "2330"]
[BlackElo "2438"]
[Result "1/2-1/2"]
[Round "02"]
[TimeControl "180+2"]
[Date "2023.01.10"]
[WhiteClock "0:00:44"]
[BlackClock "0:00:15"]

1. e4 {[%clk 0:00:00]}  c5 {[%clk 0:00:00]} 2. Nf3 {[%clk 0:03:00]}  d6 {[%clk 0:02:59]} 3. d4 {[%clk 0:03:00]}  cxd4 {[%clk 0:03:00]} 4. Nxd4 {[%clk 0:03:00]}  Nf6 {[%clk 0:03:01]} 5. Nc3 {[%clk 0:03:00]}  Nc6 {[%clk 0:03:01]} 6. f4 {[%clk 0:03:01]}  g6 {[%clk 0:03:01]} 7. Nxc6 {[%clk 0:02:59]}  bxc6 {[%clk 0:02:59]} 8. Bd3 {[%clk 0:02:58]}  Bg4 {[%clk 0:02:58]} 9. Be2 {[%clk 0:02:59]}  Bxe2 {[%clk 0:02:41]} 10. Qxe2 {[%clk 0:02:58]}  Bg7 {[%clk 0:02:27]} 11. Be3 {[%clk 0:02:59]}  O-O {[%clk 0:02:27]} 12. O-O {[%clk 0:02:54]}  Rb8 {[%clk 0:02:24]} 13. Rab1 {[%clk 0:02:52]}  Qa5 {[%clk 0:02:17]} 14. Bd2 {[%clk 0:02:51]}  Qc5+ {[%clk 0:02:17]} 15. Kh1 {[%clk 0:02:51]}  Nd7 {[%clk 0:02:07]} 16. Qd3 {[%clk 0:02:50]}  Rb7 {[%clk 0:02:01]} 17. Na4 {[%clk 0:02:42]}  Qh5 {[%clk 0:01:58]} 18. b3 {[%clk 0:02:36]}  f5 {[%clk 0:01:55]} 19. c4 {[%clk 0:02:36]}  Nf6 {[%clk 0:01:41]} 20. exf5 {[%clk 0:02:30]}  gxf5 {[%clk 0:01:36]} 21. Qf3 {[%clk 0:02:25]}  Qxf3 {[%clk 0:01:37]} 22. Rxf3 {[%clk 0:02:16]}  Ne4 {[%clk 0:01:27]} 23. Be1 {[%clk 0:02:15]}  d5 {[%clk 0:01:27]} 24. Rc1 {[%clk 0:02:04]}  d4 {[%clk 0:01:27]} 25. c5 {[%clk 0:01:59]}  Rd7 {[%clk 0:01:24]} 26. Rd3 {[%clk 0:01:52]}  Bh6 {[%clk 0:01:22]} 27. g3 {[%clk 0:01:52]}  e5 {[%clk 0:01:20]} 28. Rc4 {[%clk 0:01:52]}  exf4 {[%clk 0:01:21]} 29. gxf4 {[%clk 0:01:36]}  Rfd8 {[%clk 0:01:13]} 30. Bh4 {[%clk 0:01:36]}  Re8 {[%clk 0:01:04]} 31. Rcxd4 {[%clk 0:01:27]}  Rg7 {[%clk 0:01:01]} 32. Rd8 {[%clk 0:01:25]}  Rxd8 {[%clk 0:00:55]} 33. Rxd8+ {[%clk 0:01:23]}  Kf7 {[%clk 0:00:43]} 34. Rd7+ {[%clk 0:01:22]}  Ke6 {[%clk 0:00:43]} 35. Rxg7 {[%clk 0:01:22]}  Bxg7 {[%clk 0:00:44]} 36. Kg2 {[%clk 0:01:21]}  Kd5 {[%clk 0:00:44]} 37. Bf2 {[%clk 0:01:20]}  Bd4 {[%clk 0:00:43]} 38. Be1 {[%clk 0:01:17]}  Nxc5 {[%clk 0:00:33]} 39. Nc3+ {[%clk 0:01:11]}  Bxc3 {[%clk 0:00:26]} 40. Bxc3 {[%clk 0:01:10]}  Ke4 {[%clk 0:00:23]} 41. Kg3 {[%clk 0:01:11]}  Nd3 {[%clk 0:00:23]} 42. Bd2 {[%clk 0:01:03]}  a6 {[%clk 0:00:20]} 43. b4 {[%clk 0:01:03]}  Nb2 {[%clk 0:00:18]} 44. Bc1 {[%clk 0:00:53]}  Nc4 {[%clk 0:00:13]} 45. Kh4 {[%clk 0:00:49]}  Ne3 {[%clk 0:00:13]} 46. Kg5 {[%clk 0:00:47]}  Nd5 {[%clk 0:00:06]} 47. h4 {[%clk 0:00:46]}  Nxb4 {[%clk 0:00:06]} 48. Kh6 {[%clk 0:00:45]}  Nd3 {[%clk 0:00:06]} 49. Bd2 {[%clk 0:00:44]}  Nxf4 {[%clk 0:00:04]} 50. Kxh7 {[%clk 0:00:44]}  Nh5 {[%clk 0:00:03]} 51. Kg6 {[%clk 0:00:42]}  Ng3 {[%clk 0:00:02]} 52. Be1 {[%clk 0:00:42]}  f4 {[%clk 0:00:02]} 53. h5 {[%clk 0:00:42]}  Nxh5 {[%clk 0:00:02]} 54. Kxh5 {[%clk 0:00:41]}  Ke3 {[%clk 0:00:02]} 55. Kg4 {[%clk 0:00:42]}  f3 {[%clk 0:00:02]} 56. Kg3 {[%clk 0:00:42]}  Ke2 {[%clk 0:00:02]} 57. Bf2 {[%clk 0:00:42]}  a5 {[%clk 0:00:02]} 58. Bc5 {[%clk 0:00:42]}  a4 {[%clk 0:00:02]} 59. a3 {[%clk 0:00:42]}  Kd3 {[%clk 0:00:02]} 60. Kxf3 {[%clk 0:00:42]}  Kc4 {[%clk 0:00:01]} 61. Bd6 {[%clk 0:00:43]}  Kb3 {[%clk 0:00:01]} 62. Ke3 {[%clk 0:00:42]}  Kc4 {[%clk 0:00:02]} 63. Kd2 {[%clk 0:00:42]}  Kb5 {[%clk 0:00:02]} 64. Kc3 {[%clk 0:00:42]}  Ka6 {[%clk 0:00:03]} 65. Kb4 {[%clk 0:00:42]}  Kb7 {[%clk 0:00:04]} 66. Kxa4 {[%clk 0:00:42]}  Ka7 {[%clk 0:00:05]} 67. Kb4 {[%clk 0:00:42]}  Kb7 {[%clk 0:00:06]} 68. Kc5 {[%clk 0:00:43]}  Ka7 {[%clk 0:00:07]} 69. Kxc6 {[%clk 0:00:43]}  Ka8 {[%clk 0:00:07]} 70. Bc7 {[%clk 0:00:44]}  Ka7 {[%clk 0:00:08]} 71. Kb5 {[%clk 0:00:43]}  Ka8 {[%clk 0:00:09]} 72. Bb6 {[%clk 0:00:43]}  Kb7 {[%clk 0:00:10]} 73. Ka5 {[%clk 0:00:43]}  Ka8 {[%clk 0:00:10]} 74. Ka6 {[%clk 0:00:43]}  Kb8 {[%clk 0:00:11]} 75. a4 {[%clk 0:00:44]}  Ka8 {[%clk 0:00:11]} 76. a5 {[%clk 0:00:43]}  Kb8 {[%clk 0:00:12]} 77. Bc5 {[%clk 0:00:44]}  Ka8 {[%clk 0:00:13]} 78. Kb6 {[%clk 0:00:44]}  Kb8 {[%clk 0:00:14]} 79. Bd6+ {[%clk 0:00:44]}  Ka8 {[%clk 0:00:15]} 80. Bc7 {[%clk 0:00:44]} 1/2-1/2


[Site "https://www.chess.com"]

[Event "Titled Tuesday Blitz January 10 Late 2023"]
[White "Sourath Biswas"]
[Black "Cepo, Toni"]
[WhiteFideId "35091484"]
[BlackFideId "4675916"]
[WhiteElo "2281"]
[BlackElo "2145"]
[Result "1-0"]
[Round "02"]
[TimeControl "180+2"]
[Date "2023.01.10"]
[WhiteClock "0:02:28"]
[BlackClock "0:00:25"]

1. d4 {[%clk 0:00:00]}  Nf6 {[%clk 0:00:00]} 2. Bf4 {[%clk 0:03:00]}  d5 {[%clk 0:02:55]} 3. e3 {[%clk 0:02:52]}  c6 {[%clk 0:02:52]} 4. c4 {[%clk 0:02:53]}  g6 {[%clk 0:02:36]} 5. Nc3 {[%clk 0:02:50]}  Bg7 {[%clk 0:02:34]} 6. h4 {[%clk 0:02:50]}  h5 {[%clk 0:02:18]} 7. Be2 {[%clk 0:02:48]}  Bf5 {[%clk 0:02:13]} 8. Qb3 {[%clk 0:02:48]}  Qb6 {[%clk 0:01:40]} 9. c5 {[%clk 0:02:47]}  Qxb3 {[%clk 0:01:40]} 10. axb3 {[%clk 0:02:33]}  Nbd7 {[%clk 0:01:39]} 11. b4 {[%clk 0:02:34]}  O-O {[%clk 0:01:38]} 12. b5 {[%clk 0:02:34]}  Ne4 {[%clk 0:01:35]} 13. f3 {[%clk 0:02:33]}  Nxc3 {[%clk 0:01:17]} 14. bxc3 {[%clk 0:02:29]}  e5 {[%clk 0:01:04]} 15. Bg3 {[%clk 0:02:30]}  exd4 {[%clk 0:00:41]} 16. cxd4 {[%clk 0:02:29]}  Nxc5 {[%clk 0:00:35]} 17. bxc6 {[%clk 0:02:30]}  bxc6 {[%clk 0:00:35]} 18. Bd6 {[%clk 0:02:28]}  Nb3 {[%clk 0:00:25]} 19. Ra3 {[%clk 0:02:28]} 1-0


[Site "https://www.chess.com"]

[Event "Titled Tuesday Blitz January 10 Late 2023"]
[White "Freile Martin, Javier"]
[Black "Kozak, Adam"]
[WhiteFideId "3600165"]
[BlackFideId "753246"]
[WhiteElo "2329"]
[BlackElo "2572"]
[Result "0-1"]
[Round "02"]
[TimeControl "180+2"]
[Date "2023.01.10"]
[WhiteClock "0:00:22"]
[BlackClock "0:00:09"]

1. c4 {[%clk 0:00:00]}  g6 {[%clk 0:00:00]} 2. d4 {[%clk 0:03:00]}  Bg7 {[%clk 0:02:55]} 3. e4 {[%clk 0:02:59]}  d6 {[%clk 0:02:56]} 4. Nc3 {[%clk 0:02:59]}  Nc6 {[%clk 0:02:56]} 5. Nf3 {[%clk 0:02:54]}  e5 {[%clk 0:02:56]} 6. d5 {[%clk 0:02:47]}  Nd4 {[%clk 0:02:56]} 7. Be3 {[%clk 0:02:47]}  Bg4 {[%clk 0:02:55]} 8. Be2 {[%clk 0:02:43]}  Bxf3 {[%clk 0:02:55]} 9. Bxf3 {[%clk 0:02:43]}  Ne7 {[%clk 0:02:55]} 10. Qd2 {[%clk 0:02:42]}  Nxf3+ {[%clk 0:02:56]} 11. gxf3 {[%clk 0:02:37]}  h5 {[%clk 0:02:55]} 12. f4 {[%clk 0:02:37]}  exf4 {[%clk 0:02:41]} 13. Bxf4 {[%clk 0:02:28]}  Qd7 {[%clk 0:02:39]} 14. O-O-O {[%clk 0:02:28]}  a6 {[%clk 0:02:39]} 15. Be3 {[%clk 0:02:27]}  b5 {[%clk 0:02:37]} 16. c5 {[%clk 0:02:24]}  dxc5 {[%clk 0:02:37]} 17. Bxc5 {[%clk 0:02:21]}  O-O {[%clk 0:02:36]} 18. f4 {[%clk 0:02:20]}  Rfe8 {[%clk 0:02:36]} 19. Rhe1 {[%clk 0:02:17]}  a5 {[%clk 0:02:27]} 20. e5 {[%clk 0:02:13]}  Nf5 {[%clk 0:02:21]} 21. Ne4 {[%clk 0:02:07]}  b4 {[%clk 0:02:18]} 22. Kb1 {[%clk 0:01:55]}  Rad8 {[%clk 0:02:18]} 23. Qc2 {[%clk 0:01:53]}  Qb5 {[%clk 0:02:09]} 24. Rd2 {[%clk 0:01:50]}  a4 {[%clk 0:02:05]} 25. Qd3 {[%clk 0:01:37]}  Qb7 {[%clk 0:02:05]} 26. Qc4 {[%clk 0:01:29]}  b3 {[%clk 0:01:58]} 27. a3 {[%clk 0:01:29]}  Qa8 {[%clk 0:01:57]} 28. Rc1 {[%clk 0:01:28]}  Ne7 {[%clk 0:01:38]} 29. Bxe7 {[%clk 0:01:28]}  Rxe7 {[%clk 0:01:09]} 30. Nc5 {[%clk 0:01:27]}  Bh6 {[%clk 0:01:09]} 31. Rcd1 {[%clk 0:01:24]}  Qa5 {[%clk 0:00:59]} 32. Nxa4 {[%clk 0:01:22]}  Rxe5 {[%clk 0:00:57]} 33. fxe5 {[%clk 0:01:17]}  Bxd2 {[%clk 0:00:55]} 34. Nc5 {[%clk 0:01:16]}  Bh6 {[%clk 0:00:55]} 35. Nxb3 {[%clk 0:01:14]}  Qb6 {[%clk 0:00:41]} 36. e6 {[%clk 0:01:12]}  fxe6 {[%clk 0:00:41]} 37. Nc5 {[%clk 0:01:10]}  Bg7 {[%clk 0:00:41]} 38. Rd2 {[%clk 0:00:47]}  exd5 {[%clk 0:00:30]} 39. Qc2 {[%clk 0:00:42]}  Rd6 {[%clk 0:00:26]} 40. Na4 {[%clk 0:00:41]}  Qb5 {[%clk 0:00:20]} 41. Qxc7 {[%clk 0:00:40]}  Rc6 {[%clk 0:00:15]} 42. Qd8+ {[%clk 0:00:37]}  Kh7 {[%clk 0:00:15]} 43. Qxd5 {[%clk 0:00:36]}  Qxa4 {[%clk 0:00:16]} 44. Rg2 {[%clk 0:00:35]}  Rb6 {[%clk 0:00:16]} 45. Qd2 {[%clk 0:00:33]}  Qxa3 {[%clk 0:00:12]} 46. Qc2 {[%clk 0:00:31]}  Rxb2+ {[%clk 0:00:10]} 47. Qxb2 {[%clk 0:00:29]}  Bxb2 {[%clk 0:00:03]} 48. Rxb2 {[%clk 0:00:27]}  Kh6 {[%clk 0:00:03]} 49. Rc2 {[%clk 0:00:27]}  Qd3 {[%clk 0:00:03]} 50. Kc1 {[%clk 0:00:25]}  Kg5 {[%clk 0:00:03]} 51. Rf2 {[%clk 0:00:25]}  Qe3+ {[%clk 0:00:03]} 52. Rd2 {[%clk 0:00:23]}  Kh4 {[%clk 0:00:02]} 53. Kd1 {[%clk 0:00:23]}  Qxd2+ {[%clk 0:00:03]} 54. Kxd2 {[%clk 0:00:23]}  Kh3 {[%clk 0:00:04]} 55. Ke2 {[%clk 0:00:23]}  Kxh2 {[%clk 0:00:04]} 56. Kf2 {[%clk 0:00:24]}  g5 {[%clk 0:00:05]} 57. Kf3 {[%clk 0:00:24]}  g4+ {[%clk 0:00:05]} 58. Kf2 {[%clk 0:00:24]}  g3+ {[%clk 0:00:06]} 59. Kf3 {[%clk 0:00:24]}  h4 {[%clk 0:00:07]} 60. Kg4 {[%clk 0:00:25]}  h3 {[%clk 0:00:07]} 61. Kf3 {[%clk 0:00:24]}  g2 {[%clk 0:00:08]} 62. Kg4 {[%clk 0:00:24]}  g1=Q+ {[%clk 0:00:09]} 63. Kh4 {[%clk 0:00:22]}  Qg2 {[%clk 0:00:09]} 0-1


[Site "https://www.chess.com"]

[Event "Titled Tuesday Blitz January 10 Late 2023"]
[White "Gubajdullin, Alexei"]
[Black "Sivakumar, Shaashwath"]
[WhiteFideId "4141202"]
[BlackFideId "30912156"]
[WhiteElo "2285"]
[BlackElo "2198"]
[Result "0-1"]
[Round "02"]
[TimeControl "180+2"]
[Date "2023.01.10"]
[WhiteClock "0:00:06"]
[BlackClock "0:00:08"]

1. d4 {[%clk 0:00:00]}  d5 {[%clk 0:00:00]} 2. Nf3 {[%clk 0:03:00]}  Nf6 {[%clk 0:02:59]} 3. Bf4 {[%clk 0:02:56]}  c5 {[%clk 0:02:59]} 4. e3 {[%clk 0:02:56]}  Nc6 {[%clk 0:02:58]} 5. Nbd2 {[%clk 0:02:56]}  e6 {[%clk 0:02:45]} 6. c3 {[%clk 0:02:55]}  Bd6 {[%clk 0:02:38]} 7. Bg3 {[%clk 0:02:51]}  O-O {[%clk 0:02:38]} 8. Bd3 {[%clk 0:02:52]}  b6 {[%clk 0:02:35]} 9. Ne5 {[%clk 0:02:51]}  Bb7 {[%clk 0:02:34]} 10. f4 {[%clk 0:02:51]}  Ne7 {[%clk 0:02:31]} 11. Qf3 {[%clk 0:02:51]}  Nf5 {[%clk 0:02:31]} 12. Bf2 {[%clk 0:02:50]}  Be7 {[%clk 0:02:30]} 13. g4 {[%clk 0:02:50]}  Nd6 {[%clk 0:02:29]} 14. g5 {[%clk 0:02:50]}  Nfe4 {[%clk 0:02:30]} 15. h4 {[%clk 0:02:51]}  Nxd2 {[%clk 0:02:29]} 16. Kxd2 {[%clk 0:02:50]}  Ne4+ {[%clk 0:02:17]} 17. Ke2 {[%clk 0:02:47]}  f6 {[%clk 0:02:16]} 18. gxf6 {[%clk 0:02:45]}  Bxf6 {[%clk 0:01:57]} 19. Rag1 {[%clk 0:02:43]}  Bxe5 {[%clk 0:01:42]} 20. dxe5 {[%clk 0:02:39]}  Qc8 {[%clk 0:01:30]} 21. Rh2 {[%clk 0:02:38]}  Ba6 {[%clk 0:01:11]} 22. c4 {[%clk 0:02:24]}  Qb7 {[%clk 0:01:10]} 23. Rhg2 {[%clk 0:02:15]}  Rf7 {[%clk 0:01:04]} 24. b3 {[%clk 0:02:12]}  b5 {[%clk 0:01:00]} 25. cxd5 {[%clk 0:02:03]}  exd5 {[%clk 0:00:28]} 26. e6 {[%clk 0:01:44]}  Re7 {[%clk 0:00:26]} 27. f5 {[%clk 0:01:21]}  Rf8 {[%clk 0:00:25]} 28. Be1 {[%clk 0:01:21]}  b4 {[%clk 0:00:20]} 29. Bxa6 {[%clk 0:00:51]}  Qxa6+ {[%clk 0:00:20]} 30. Kd1 {[%clk 0:00:31]}  Qd3+ {[%clk 0:00:20]} 31. Kc1 {[%clk 0:00:31]}  c4 {[%clk 0:00:19]} 32. Bxb4 {[%clk 0:00:30]}  cxb3 {[%clk 0:00:14]} 33. Bxe7 {[%clk 0:00:25]}  b2+ {[%clk 0:00:14]} 34. Kxb2 {[%clk 0:00:13]}  Qc3+ {[%clk 0:00:12]} 35. Kb1 {[%clk 0:00:06]}  Rb8+ {[%clk 0:00:08]} 0-1


[Site "https://www.chess.com"]

[Event "Titled Tuesday Blitz January 10 Late 2023"]
[White "Mikhailov, Viacheslav"]
[Black "Perez Rodriguez, Jennifer"]
[WhiteFideId "4187369"]
[BlackFideId "3507831"]
[WhiteElo "2428"]
[BlackElo "2242"]
[Result "0-1"]
[Round "02"]
[TimeControl "180+2"]
[Date "2023.01.10"]
[WhiteClock "0:00:01"]
[BlackClock "0:00:09"]

1. d4 {[%clk 0:00:00]}  d5 {[%clk 0:00:00]} 2. Nf3 {[%clk 0:03:00]}  Nf6 {[%clk 0:03:00]} 3. Bf4 {[%clk 0:03:00]}  c5 {[%clk 0:03:00]} 4. c3 {[%clk 0:03:00]}  Nc6 {[%clk 0:02:59]} 5. e3 {[%clk 0:03:00]}  Bf5 {[%clk 0:02:58]} 6. Bd3 {[%clk 0:03:00]}  Bxd3 {[%clk 0:02:52]} 7. Qxd3 {[%clk 0:02:59]}  e6 {[%clk 0:02:52]} 8. O-O {[%clk 0:03:00]}  Bd6 {[%clk 0:02:52]} 9. Bg3 {[%clk 0:03:00]}  O-O {[%clk 0:02:51]} 10. Nbd2 {[%clk 0:02:57]}  Re8 {[%clk 0:02:51]} 11. e4 {[%clk 0:02:57]}  Bxg3 {[%clk 0:02:45]} 12. hxg3 {[%clk 0:02:51]}  cxd4 {[%clk 0:02:43]} 13. e5 {[%clk 0:02:51]}  Nd7 {[%clk 0:02:43]} 14. cxd4 {[%clk 0:02:37]}  h6 {[%clk 0:02:33]} 15. a3 {[%clk 0:02:37]}  a5 {[%clk 0:02:30]} 16. Rfc1 {[%clk 0:02:37]}  Qb6 {[%clk 0:02:29]} 17. Rc2 {[%clk 0:02:36]}  a4 {[%clk 0:02:27]} 18. Rac1 {[%clk 0:02:22]}  Ra5 {[%clk 0:02:26]} 19. g4 {[%clk 0:02:22]}  Rb5 {[%clk 0:02:22]} 20. g5 {[%clk 0:02:21]}  hxg5 {[%clk 0:02:14]} 21. Nxg5 {[%clk 0:02:21]}  Nf8 {[%clk 0:02:01]} 22. Ndf3 {[%clk 0:02:22]}  Rxb2 {[%clk 0:02:00]} 23. Rxb2 {[%clk 0:02:02]}  Qxb2 {[%clk 0:01:58]} 24. Rb1 {[%clk 0:01:58]}  Qa2 {[%clk 0:01:58]} 25. Rxb7 {[%clk 0:01:58]}  Re7 {[%clk 0:01:48]} 26. Rb6 {[%clk 0:01:58]}  Rc7 {[%clk 0:01:43]} 27. Ra6 {[%clk 0:01:47]}  Qb3 {[%clk 0:01:12]} 28. Qe2 {[%clk 0:01:44]}  Qb1+ {[%clk 0:01:03]} 29. Kh2 {[%clk 0:01:08]}  Qf5 {[%clk 0:00:45]} 30. Ra8 {[%clk 0:01:05]}  Nxd4 {[%clk 0:00:35]} 31. Nxd4 {[%clk 0:01:04]}  Qxg5 {[%clk 0:00:28]} 32. Qb2 {[%clk 0:00:46]}  Qh6+ {[%clk 0:00:25]} 33. Kg3 {[%clk 0:00:10]}  Qg5+ {[%clk 0:00:23]} 34. Kh2 {[%clk 0:00:10]}  Qxe5+ {[%clk 0:00:22]} 35. g3 {[%clk 0:00:09]}  Qe4 {[%clk 0:00:21]} 36. Rxf8+ {[%clk 0:00:09]}  Kxf8 {[%clk 0:00:20]} 37. Qb8+ {[%clk 0:00:07]}  Ke7 {[%clk 0:00:19]} 38. Qxc7+ {[%clk 0:00:08]}  Kf6 {[%clk 0:00:18]} 39. Qc3 {[%clk 0:00:08]}  Qh7+ {[%clk 0:00:17]} 40. Kg2 {[%clk 0:00:04]}  Qe4+ {[%clk 0:00:15]} 41. Nf3+ {[%clk 0:00:04]}  Kg6 {[%clk 0:00:16]} 42. Qd4 {[%clk 0:00:04]}  Qxd4 {[%clk 0:00:15]} 43. Nxd4 {[%clk 0:00:02]}  e5 {[%clk 0:00:14]} 44. Nb5 {[%clk 0:00:03]}  d4 {[%clk 0:00:13]} 45. Kf3 {[%clk 0:00:03]}  f5 {[%clk 0:00:13]} 46. Ke2 {[%clk 0:00:02]}  Kg5 {[%clk 0:00:13]} 47. f3 {[%clk 0:00:02]}  e4 {[%clk 0:00:11]} 48. Nxd4 {[%clk 0:00:02]}  exf3+ {[%clk 0:00:10]} 49. Kxf3 {[%clk 0:00:01]}  Kf6 {[%clk 0:00:09]} 0-1


[Site "https://www.chess.com"]

[Event "Titled Tuesday Blitz January 10 Late 2023"]
[White "Mazurkiewicz, Michal"]
[Black "Perske, Thore"]
[WhiteFideId "1124943"]
[BlackFideId "12902195"]
[WhiteElo "2145"]
[BlackElo "2448"]
[Result "0-1"]
[Round "02"]
[TimeControl "180+2"]
[Date "2023.01.10"]
[WhiteClock "0:00:03"]
[BlackClock "0:00:24"]

1. e4 {[%clk 0:00:00]}  e6 {[%clk 0:00:00]} 2. d3 {[%clk 0:03:00]}  d5 {[%clk 0:02:59]} 3. Nd2 {[%clk 0:03:00]}  c5 {[%clk 0:02:59]} 4. Ngf3 {[%clk 0:03:01]}  Nc6 {[%clk 0:03:00]} 5. g3 {[%clk 0:03:02]}  g6 {[%clk 0:03:00]} 6. Bg2 {[%clk 0:03:02]}  Bg7 {[%clk 0:03:01]} 7. O-O {[%clk 0:03:02]}  Nge7 {[%clk 0:03:01]} 8. Re1 {[%clk 0:03:02]}  O-O {[%clk 0:03:01]} 9. e5 {[%clk 0:03:03]}  Qc7 {[%clk 0:03:01]} 10. Qe2 {[%clk 0:03:03]}  g5 {[%clk 0:03:01]} 11. Nxg5 {[%clk 0:03:03]}  Qxe5 {[%clk 0:03:01]} 12. Nde4 {[%clk 0:02:50]}  dxe4 {[%clk 0:03:00]} 13. Bf4 {[%clk 0:02:04]}  Qxb2 {[%clk 0:02:57]} 14. Rab1 {[%clk 0:02:04]}  Qf6 {[%clk 0:02:53]} 15. Nxe4 {[%clk 0:02:04]}  Qg6 {[%clk 0:01:56]} 16. Nxc5 {[%clk 0:01:58]}  Nd5 {[%clk 0:01:51]} 17. Bd2 {[%clk 0:01:45]}  b6 {[%clk 0:01:49]} 18. Ne4 {[%clk 0:01:40]}  Nd4 {[%clk 0:01:45]} 19. Qd1 {[%clk 0:01:33]}  Bd7 {[%clk 0:01:38]} 20. c3 {[%clk 0:01:30]}  Nc6 {[%clk 0:01:31]} 21. c4 {[%clk 0:01:29]}  Nf6 {[%clk 0:01:28]} 22. h4 {[%clk 0:01:29]}  Nxe4 {[%clk 0:01:24]} 23. Bxe4 {[%clk 0:01:07]}  f5 {[%clk 0:01:20]} 24. Bf3 {[%clk 0:01:06]}  Rad8 {[%clk 0:01:20]} 25. Bh5 {[%clk 0:01:06]}  Qf6 {[%clk 0:01:13]} 26. Bg5 {[%clk 0:01:05]}  Qd4 {[%clk 0:01:09]} 27. Bxd8 {[%clk 0:01:06]}  Rxd8 {[%clk 0:01:03]} 28. a4 {[%clk 0:01:04]}  Ne5 {[%clk 0:01:04]} 29. a5 {[%clk 0:00:40]}  Nxd3 {[%clk 0:00:58]} 30. axb6 {[%clk 0:00:39]}  Nxe1 {[%clk 0:00:51]} 31. b7 {[%clk 0:00:11]}  Nd3 {[%clk 0:00:41]} 32. b8=Q {[%clk 0:00:10]}  Qxf2+ {[%clk 0:00:26]} 33. Kh1 {[%clk 0:00:09]}  Bc6+ {[%clk 0:00:26]} 34. Bf3 {[%clk 0:00:09]}  Bxf3+ {[%clk 0:00:25]} 35. Qxf3 {[%clk 0:00:03]}  Qxf3+ {[%clk 0:00:25]} 36. Kh2 {[%clk 0:00:03]}  Rxb8 {[%clk 0:00:26]} 37. Rxb8+ {[%clk 0:00:04]}  Bf8 {[%clk 0:00:25]} 38. Rb7 {[%clk 0:00:02]}  Bd6 {[%clk 0:00:25]} 39. Rb8+ {[%clk 0:00:03]}  Bxb8 {[%clk 0:00:23]} 40. h5 {[%clk 0:00:03]}  Qxg3+ {[%clk 0:00:23]} 41. Kh1 {[%clk 0:00:03]}  Qh2# {[%clk 0:00:24]} 0-1


[Site "https://www.chess.com"]